[Event "Titled Tuesday Blitz August 1 Early 2023"]
[White "Goltseva, Ekaterina"]
[Black "Gunina, Valentina"]
[WhiteFideId "24173770"]
[BlackFideId "4167570"]
[WhiteElo "2527"]
[BlackElo "2691"]
[Result "0-1"]
[Round "6"]
[TimeControl "180+1"]
[Date "2023.08.01"]
[WhiteClock "0:00:03"]
[BlackClock "0:02:00"]
[Board "77"]

1. Nf3 {[%clk 0:03:00]}  d5 {[%clk 0:02:59]} 2. d4 {[%clk 0:02:58]}  Nf6 {[%clk 0:02:58]} 3. c4 {[%clk 0:02:58]}  c6 {[%clk 0:02:58]} 4. g3 {[%clk 0:02:57]}  Bf5 {[%clk 0:02:57]} 5. Nc3 {[%clk 0:02:56]}  e6 {[%clk 0:02:57]} 6. Nh4 {[%clk 0:02:55]}  dxc4 {[%clk 0:02:57]} 7. Nxf5 {[%clk 0:02:55]}  exf5 {[%clk 0:02:57]} 8. e3 {[%clk 0:02:55]}  Nbd7 {[%clk 0:02:58]} 9. Bxc4 {[%clk 0:02:55]}  Nb6 {[%clk 0:02:58]} 10. Bb3 {[%clk 0:02:55]}  Qd7 {[%clk 0:02:58]} 11. Bd2 {[%clk 0:02:43]}  Be7 {[%clk 0:02:47]} 12. Qf3 {[%clk 0:02:39]}  g6 {[%clk 0:02:46]} 13. h3 {[%clk 0:02:28]}  h5 {[%clk 0:02:44]} 14. O-O-O {[%clk 0:02:23]}  a5 {[%clk 0:02:43]} 15. a3 {[%clk 0:02:13]}  a4 {[%clk 0:02:42]} 16. Ba2 {[%clk 0:02:14]}  Nbd5 {[%clk 0:02:40]} 17. g4 {[%clk 0:01:50]}  fxg4 {[%clk 0:02:38]} 18. hxg4 {[%clk 0:01:46]}  Nxc3 {[%clk 0:02:27]} 19. Bxc3 {[%clk 0:01:38]}  Qxg4 {[%clk 0:02:27]} 20. Qxg4 {[%clk 0:01:32]}  Nxg4 {[%clk 0:02:26]} 21. d5 {[%clk 0:01:19]}  O-O {[%clk 0:02:26]} 22. Rdg1 {[%clk 0:01:07]}  Bf6 {[%clk 0:02:12]} 23. Bxf6 {[%clk 0:00:50]}  Nxf6 {[%clk 0:02:11]} 24. dxc6 {[%clk 0:00:50]}  Kg7 {[%clk 0:02:07]} 25. cxb7 {[%clk 0:00:43]}  Ra7 {[%clk 0:02:08]} 26. Rh4 {[%clk 0:00:32]}  Rb8 {[%clk 0:02:06]} 27. e4 {[%clk 0:00:17]}  Raxb7 {[%clk 0:02:04]} 28. e5 {[%clk 0:00:15]}  Ng4 {[%clk 0:02:04]} 29. Rd1 {[%clk 0:00:07]}  Rxb2 {[%clk 0:02:03]} 30. Rd2 {[%clk 0:00:03]}  Rxd2 {[%clk 0:02:00]} 31. Kxd2 {[%clk 0:00:04]}  Rb2+ {[%clk 0:02:00]} 32. Kc3 {[%clk 0:00:03]}  Rxa2 {[%clk 0:02:00]} 0-1


[Site "https://www.chess.com"]

[Event "Titled Tuesday Blitz August 1 Early 2023"]
[White "Skliarov, Viktor"]
[Black "Hoang, Thi Bao Tram"]
[WhiteFideId "14106736"]
[BlackFideId "12401102"]
[WhiteElo "2670"]
[BlackElo "2513"]
[Result "0-1"]
[Round "6"]
[TimeControl "180+1"]
[Date "2023.08.01"]
[WhiteClock "0:00:00"]
[BlackClock "0:00:33"]
[Board "81"]

1. e4 {[%clk 0:03:00]}  c6 {[%clk 0:02:58]} 2. d4 {[%clk 0:02:57]}  d5 {[%clk 0:02:58]} 3. e5 {[%clk 0:02:56]}  g6 {[%clk 0:02:52]} 4. h3 {[%clk 0:02:48]}  Bg7 {[%clk 0:02:48]} 5. Nf3 {[%clk 0:02:47]}  f6 {[%clk 0:02:46]} 6. Bd3 {[%clk 0:02:42]}  Nh6 {[%clk 0:02:45]} 7. exf6 {[%clk 0:02:38]}  exf6 {[%clk 0:02:45]} 8. O-O {[%clk 0:02:38]}  O-O {[%clk 0:02:45]} 9. Re1 {[%clk 0:02:34]}  a5 {[%clk 0:02:44]} 10. Nc3 {[%clk 0:02:30]}  Na6 {[%clk 0:02:42]} 11. a3 {[%clk 0:02:27]}  Nc7 {[%clk 0:02:39]} 12. Ne2 {[%clk 0:02:27]}  Ne6 {[%clk 0:02:39]} 13. Ng3 {[%clk 0:02:25]}  Qd6 {[%clk 0:02:36]} 14. a4 {[%clk 0:02:15]}  Bd7 {[%clk 0:02:34]} 15. b3 {[%clk 0:02:15]}  Rfe8 {[%clk 0:02:29]} 16. Ba3 {[%clk 0:02:14]}  Qc7 {[%clk 0:02:29]} 17. c4 {[%clk 0:02:08]}  Qb6 {[%clk 0:02:23]} 18. Bc2 {[%clk 0:01:43]}  Rad8 {[%clk 0:02:13]} 19. cxd5 {[%clk 0:01:36]}  cxd5 {[%clk 0:02:13]} 20. Qd2 {[%clk 0:01:36]}  Nf7 {[%clk 0:02:10]} 21. h4 {[%clk 0:01:34]}  Bh6 {[%clk 0:02:03]} 22. Qd1 {[%clk 0:01:19]}  Ng7 {[%clk 0:02:00]} 23. h5 {[%clk 0:01:07]}  f5 {[%clk 0:01:59]} 24. hxg6 {[%clk 0:00:32]}  hxg6 {[%clk 0:01:59]} 25. Ne5 {[%clk 0:00:32]}  Nxe5 {[%clk 0:01:55]} 26. dxe5 {[%clk 0:00:32]}  Bc6 {[%clk 0:01:45]} 27. Bd6 {[%clk 0:00:28]}  Re6 {[%clk 0:01:30]} 28. Ne2 {[%clk 0:00:28]}  Ree8 {[%clk 0:01:19]} 29. Nd4 {[%clk 0:00:27]}  Ne6 {[%clk 0:01:19]} 30. Nxc6 {[%clk 0:00:21]}  bxc6 {[%clk 0:01:18]} 31. Bd3 {[%clk 0:00:18]}  Bf8 {[%clk 0:01:12]} 32. Bxf8 {[%clk 0:00:17]}  Nxf8 {[%clk 0:01:10]} 33. Qd2 {[%clk 0:00:18]}  Qd4 {[%clk 0:01:07]} 34. Rad1 {[%clk 0:00:15]}  Rxe5 {[%clk 0:01:06]} 35. Rxe5 {[%clk 0:00:16]}  Qxe5 {[%clk 0:01:07]} 36. Qxa5 {[%clk 0:00:16]}  Re8 {[%clk 0:00:59]} 37. Bf1 {[%clk 0:00:16]}  Qb2 {[%clk 0:00:50]} 38. Qb6 {[%clk 0:00:15]}  Qc2 {[%clk 0:00:50]} 39. Rd3 {[%clk 0:00:10]}  Re6 {[%clk 0:00:46]} 40. a5 {[%clk 0:00:09]}  Re1 {[%clk 0:00:46]} 41. Re3 {[%clk 0:00:09]}  Rc1 {[%clk 0:00:40]} 42. Qa6 {[%clk 0:00:03]}  d4 {[%clk 0:00:36]} 43. Re7 {[%clk 0:00:03]}  d3 {[%clk 0:00:34]} 44. Qc4+ {[%clk 0:00:01]}  Qxc4 {[%clk 0:00:33]} 45. bxc4 {[%clk 0:00:00]}  d2 {[%clk 0:00:33]} 0-1


[Site "https://www.chess.com"]

[Event "Titled Tuesday Blitz August 1 Early 2023"]
[White "Erzhanov, Arman"]
[Black "Poormosavi, Seyed Kian"]
[WhiteFideId "4138821"]
[BlackFideId "12585807"]
[WhiteElo "2509"]
[BlackElo "2664"]
[Result "0-1"]
[Round "6"]
[TimeControl "180+1"]
[Date "2023.08.01"]
[WhiteClock "0:00:00"]
[BlackClock "0:01:04"]
[Board "82"]

1. e4 {[%clk 0:03:00]}  c6 {[%clk 0:02:58]} 2. d4 {[%clk 0:02:58]}  d5 {[%clk 0:02:57]} 3. exd5 {[%clk 0:02:59]}  cxd5 {[%clk 0:02:57]} 4. Bd3 {[%clk 0:03:00]}  Nf6 {[%clk 0:02:56]} 5. h3 {[%clk 0:03:00]}  Nc6 {[%clk 0:02:56]} 6. c3 {[%clk 0:03:01]}  g6 {[%clk 0:02:54]} 7. Nf3 {[%clk 0:03:01]}  Bg7 {[%clk 0:02:53]} 8. O-O {[%clk 0:03:01]}  O-O {[%clk 0:02:52]} 9. Re1 {[%clk 0:03:01]}  Bf5 {[%clk 0:02:50]} 10. Bf1 {[%clk 0:03:01]}  Qd6 {[%clk 0:02:43]} 11. Bg5 {[%clk 0:02:59]}  Ne4 {[%clk 0:02:40]} 12. Be3 {[%clk 0:02:54]}  h6 {[%clk 0:02:38]} 13. Nbd2 {[%clk 0:02:54]}  g5 {[%clk 0:02:38]} 14. Nxe4 {[%clk 0:02:48]}  Bxe4 {[%clk 0:02:37]} 15. Bd3 {[%clk 0:02:39]}  f5 {[%clk 0:02:36]} 16. Bb5 {[%clk 0:02:35]}  f4 {[%clk 0:02:34]} 17. Bd2 {[%clk 0:02:33]}  Rad8 {[%clk 0:02:35]} 18. Ba4 {[%clk 0:02:23]}  Qg6 {[%clk 0:02:30]} 19. Nh2 {[%clk 0:02:06]}  h5 {[%clk 0:02:09]} 20. f3 {[%clk 0:02:05]}  Bf5 {[%clk 0:02:08]} 21. Bxc6 {[%clk 0:02:04]}  bxc6 {[%clk 0:02:09]} 22. Rxe7 {[%clk 0:02:04]}  c5 {[%clk 0:02:09]} 23. dxc5 {[%clk 0:01:55]}  d4 {[%clk 0:02:00]} 24. Qe1 {[%clk 0:01:55]}  Bf6 {[%clk 0:01:56]} 25. Rxa7 {[%clk 0:01:52]}  Rfe8 {[%clk 0:01:55]} 26. Qf2 {[%clk 0:01:52]}  dxc3 {[%clk 0:01:50]} 27. Bxc3 {[%clk 0:01:52]}  Bxc3 {[%clk 0:01:49]} 28. bxc3 {[%clk 0:01:53]}  Qf6 {[%clk 0:01:48]} 29. Qb2 {[%clk 0:01:18]}  Qe5 {[%clk 0:01:45]} 30. Qb3+ {[%clk 0:00:55]}  Be6 {[%clk 0:01:43]} 31. Qb4 {[%clk 0:00:46]}  Qe3+ {[%clk 0:01:40]} 32. Kh1 {[%clk 0:00:46]}  Qe2 {[%clk 0:01:33]} 33. Nf1 {[%clk 0:00:30]}  Bxh3 {[%clk 0:01:22]} 34. gxh3 {[%clk 0:00:18]}  Qxf3+ {[%clk 0:01:22]} 35. Kg1 {[%clk 0:00:18]}  Re2 {[%clk 0:01:23]} 36. Qc4+ {[%clk 0:00:16]}  Kh8 {[%clk 0:01:23]} 37. Qxe2 {[%clk 0:00:15]}  Qxe2 {[%clk 0:01:23]} 38. c6 {[%clk 0:00:14]}  f3 {[%clk 0:01:19]} 39. Ne3 {[%clk 0:00:04]}  Qxe3+ {[%clk 0:01:11]} 40. Kh1 {[%clk 0:00:04]}  Qe2 {[%clk 0:01:06]} 41. Rg1 {[%clk 0:00:00]}  Rd1 {[%clk 0:01:04]} 0-1


[Site "https://www.chess.com"]

[Event "Titled Tuesday Blitz August 1 Early 2023"]
[White "Kwon, Sehyun"]
[Black "Molenda, Marcin"]
[WhiteFideId "13203088"]
[BlackFideId "1173065"]
[WhiteElo "2656"]
[BlackElo "2502"]
[Result "0-1"]
[Round "6"]
[TimeControl "180+1"]
[Date "2023.08.01"]
[WhiteClock "0:00:01"]
[BlackClock "0:00:09"]
[Board "84"]

1. Nf3 {[%clk 0:03:00]}  d5 {[%clk 0:02:59]} 2. b3 {[%clk 0:03:01]}  c5 {[%clk 0:02:58]} 3. Bb2 {[%clk 0:03:01]}  Nc6 {[%clk 0:02:59]} 4. e3 {[%clk 0:03:00]}  Bg4 {[%clk 0:02:54]} 5. Bb5 {[%clk 0:02:54]}  f6 {[%clk 0:02:48]} 6. h3 {[%clk 0:02:46]}  Bh5 {[%clk 0:02:48]} 7. Bxc6+ {[%clk 0:02:43]}  bxc6 {[%clk 0:02:47]} 8. d4 {[%clk 0:02:41]}  e6 {[%clk 0:02:39]} 9. O-O {[%clk 0:02:40]}  Nh6 {[%clk 0:02:33]} 10. Re1 {[%clk 0:02:40]}  Bd6 {[%clk 0:02:33]} 11. Nbd2 {[%clk 0:02:40]}  O-O {[%clk 0:02:33]} 12. c4 {[%clk 0:02:33]}  cxd4 {[%clk 0:02:32]} 13. exd4 {[%clk 0:02:33]}  Qd7 {[%clk 0:02:28]} 14. Rc1 {[%clk 0:02:27]}  Rae8 {[%clk 0:02:28]} 15. Qc2 {[%clk 0:02:19]}  Bg6 {[%clk 0:02:18]} 16. Qc3 {[%clk 0:02:19]}  Rc8 {[%clk 0:01:44]} 17. Qa5 {[%clk 0:02:18]}  Rfe8 {[%clk 0:01:37]} 18. Qa4 {[%clk 0:02:18]}  Qb7 {[%clk 0:01:28]} 19. Ba3 {[%clk 0:02:03]}  Bf4 {[%clk 0:01:26]} 20. Bc5 {[%clk 0:01:52]}  a6 {[%clk 0:01:25]} 21. Qa3 {[%clk 0:01:45]}  e5 {[%clk 0:01:15]} 22. dxe5 {[%clk 0:01:12]}  fxe5 {[%clk 0:01:16]} 23. Be3 {[%clk 0:01:12]}  Bxe3 {[%clk 0:01:06]} 24. Rxe3 {[%clk 0:01:13]}  e4 {[%clk 0:01:07]} 25. Nh4 {[%clk 0:00:35]}  d4 {[%clk 0:01:04]} 26. Rg3 {[%clk 0:00:36]}  e3 {[%clk 0:00:53]} 27. fxe3 {[%clk 0:00:34]}  dxe3 {[%clk 0:00:54]} 28. Ndf3 {[%clk 0:00:33]}  Qc7 {[%clk 0:00:49]} 29. Rg5 {[%clk 0:00:27]}  Qf4 {[%clk 0:00:36]} 30. Nxg6 {[%clk 0:00:20]}  hxg6 {[%clk 0:00:37]} 31. Rxg6 {[%clk 0:00:19]}  e2 {[%clk 0:00:36]} 32. Re1 {[%clk 0:00:19]}  Rcd8 {[%clk 0:00:32]} 33. Qb2 {[%clk 0:00:19]}  Qe3+ {[%clk 0:00:27]} 34. Kh1 {[%clk 0:00:18]}  Nf5 {[%clk 0:00:28]} 35. Rg5 {[%clk 0:00:08]}  Qf4 {[%clk 0:00:18]} 36. Kg1 {[%clk 0:00:05]}  Rd1 {[%clk 0:00:17]} 37. Qc3 {[%clk 0:00:04]}  Rxe1+ {[%clk 0:00:17]} 38. Nxe1 {[%clk 0:00:04]}  Qxg5 {[%clk 0:00:15]} 39. c5 {[%clk 0:00:01]}  Qe3+ {[%clk 0:00:09]} 0-1


[Site "https://www.chess.com"]

[Event "Titled Tuesday Blitz August 1 Early 2023"]
[White "Mmukka"]
[Black "Weishaeutel, Moritz"]
[BlackFideId "12967300"]
[WhiteElo "2478"]
[BlackElo "2644"]
[Result "1-0"]
[Round "6"]
[TimeControl "180+1"]
[Date "2023.08.01"]
[WhiteClock "0:00:42"]
[BlackClock "0:00:04"]
[Board "87"]

1. e4 {[%clk 0:02:59]}  e5 {[%clk 0:03:00]} 2. Nf3 {[%clk 0:02:57]}  Nf6 {[%clk 0:03:00]} 3. d4 {[%clk 0:02:57]}  Nxe4 {[%clk 0:03:00]} 4. Bd3 {[%clk 0:02:57]}  d5 {[%clk 0:03:00]} 5. Nxe5 {[%clk 0:02:57]}  Nd7 {[%clk 0:03:00]} 6. O-O {[%clk 0:02:53]}  Bd6 {[%clk 0:02:58]} 7. Nc3 {[%clk 0:02:49]}  Nxe5 {[%clk 0:02:48]} 8. dxe5 {[%clk 0:02:47]}  Bxe5 {[%clk 0:02:49]} 9. Nxe4 {[%clk 0:02:24]}  dxe4 {[%clk 0:02:49]} 10. Bxe4 {[%clk 0:02:24]}  Qh4 {[%clk 0:01:56]} 11. g3 {[%clk 0:02:21]}  Qxe4 {[%clk 0:01:48]} 12. Re1 {[%clk 0:02:21]}  Qc6 {[%clk 0:01:23]} 13. Rxe5+ {[%clk 0:02:19]}  Be6 {[%clk 0:01:23]} 14. c3 {[%clk 0:02:08]}  O-O {[%clk 0:01:18]} 15. Be3 {[%clk 0:01:59]}  Bh3 {[%clk 0:01:06]} 16. f3 {[%clk 0:01:57]}  Rfe8 {[%clk 0:01:06]} 17. Rxe8+ {[%clk 0:01:51]}  Rxe8 {[%clk 0:01:07]} 18. Bf2 {[%clk 0:01:51]}  h5 {[%clk 0:00:39]} 19. Qd3 {[%clk 0:01:47]}  Re6 {[%clk 0:00:35]} 20. Rd1 {[%clk 0:00:51]}  Rf6 {[%clk 0:00:31]} 21. Qe4 {[%clk 0:00:48]}  Rxf3 {[%clk 0:00:18]} 22. Qxc6 {[%clk 0:00:48]}  bxc6 {[%clk 0:00:19]} 23. Bxa7 {[%clk 0:00:48]}  h4 {[%clk 0:00:15]} 24. Bf2 {[%clk 0:00:47]}  hxg3 {[%clk 0:00:14]} 25. Bxg3 {[%clk 0:00:47]}  f5 {[%clk 0:00:14]} 26. Bxc7 {[%clk 0:00:46]}  g5 {[%clk 0:00:11]} 27. a4 {[%clk 0:00:45]}  f4 {[%clk 0:00:11]} 28. a5 {[%clk 0:00:45]}  Re3 {[%clk 0:00:05]} 29. a6 {[%clk 0:00:45]}  Bc8 {[%clk 0:00:01]} 30. Rd8+ {[%clk 0:00:43]}  Kf7 {[%clk 0:00:02]} 31. Rxc8 {[%clk 0:00:43]}  f3 {[%clk 0:00:02]} 32. Kf2 {[%clk 0:00:43]}  Re2+ {[%clk 0:00:02]} 33. Kxf3 {[%clk 0:00:44]}  Rxb2 {[%clk 0:00:03]} 34. a7 {[%clk 0:00:44]}  Rc2 {[%clk 0:00:04]} 35. Be5 {[%clk 0:00:43]}  Rxc3+ {[%clk 0:00:04]} 36. Bxc3 {[%clk 0:00:42]} 1-0


[Site "https://www.chess.com"]

[Event "Titled Tuesday Blitz August 1 Early 2023"]
[White "Malek, Jan"]
[Black "chessmateto"]
[WhiteFideId "21864080"]
[WhiteElo "2633"]
[BlackElo "2475"]
[Result "1-0"]
[Round "6"]
[TimeControl "180+1"]
[Date "2023.08.01"]
[WhiteClock "0:00:11"]
[BlackClock "0:00:06"]
[Board "90"]

1. b3 {[%clk 0:03:00]}  e5 {[%clk 0:02:58]} 2. Bb2 {[%clk 0:03:01]}  Nc6 {[%clk 0:02:57]} 3. e3 {[%clk 0:03:01]}  d5 {[%clk 0:02:57]} 4. Bb5 {[%clk 0:03:02]}  Bd6 {[%clk 0:02:55]} 5. Nf3 {[%clk 0:03:00]}  Bg4 {[%clk 0:02:51]} 6. h3 {[%clk 0:02:56]}  Bxf3 {[%clk 0:02:50]} 7. Qxf3 {[%clk 0:02:57]}  Nf6 {[%clk 0:02:46]} 8. d3 {[%clk 0:02:51]}  O-O {[%clk 0:02:43]} 9. Bxc6 {[%clk 0:02:51]}  bxc6 {[%clk 0:02:43]} 10. Nd2 {[%clk 0:02:52]}  Re8 {[%clk 0:02:39]} 11. O-O {[%clk 0:02:48]}  Qe7 {[%clk 0:02:39]} 12. e4 {[%clk 0:02:47]}  Ba3 {[%clk 0:02:33]} 13. Bxa3 {[%clk 0:02:39]}  Qxa3 {[%clk 0:02:32]} 14. Qe2 {[%clk 0:02:30]}  a5 {[%clk 0:02:28]} 15. Nf3 {[%clk 0:02:27]}  dxe4 {[%clk 0:02:08]} 16. dxe4 {[%clk 0:02:27]}  Qb4 {[%clk 0:02:09]} 17. Rfe1 {[%clk 0:02:22]}  a4 {[%clk 0:02:07]} 18. Rad1 {[%clk 0:02:22]}  axb3 {[%clk 0:02:03]} 19. cxb3 {[%clk 0:02:19]}  Ra3 {[%clk 0:01:52]} 20. Qc2 {[%clk 0:02:00]}  c5 {[%clk 0:01:35]} 21. Rc1 {[%clk 0:01:58]}  Ra5 {[%clk 0:01:27]} 22. Nd2 {[%clk 0:01:50]}  Rea8 {[%clk 0:01:25]} 23. a4 {[%clk 0:01:50]}  Re8 {[%clk 0:00:58]} 24. Nc4 {[%clk 0:01:49]}  Ra6 {[%clk 0:00:58]} 25. Red1 {[%clk 0:01:48]}  Nh5 {[%clk 0:00:53]} 26. Rd7 {[%clk 0:01:43]}  Nf4 {[%clk 0:00:45]} 27. Nxe5 {[%clk 0:01:38]}  f6 {[%clk 0:00:33]} 28. Ng4 {[%clk 0:01:31]}  Qxe4 {[%clk 0:00:27]} 29. Qxe4 {[%clk 0:01:23]}  Rxe4 {[%clk 0:00:28]} 30. Rxc5 {[%clk 0:01:23]}  h5 {[%clk 0:00:14]} 31. Ne3 {[%clk 0:01:08]}  Ne6 {[%clk 0:00:15]} 32. Rxh5 {[%clk 0:01:03]}  Rb6 {[%clk 0:00:15]} 33. Rb5 {[%clk 0:00:59]}  Rxb5 {[%clk 0:00:16]} 34. axb5 {[%clk 0:01:00]}  Rb4 {[%clk 0:00:16]} 35. Re7 {[%clk 0:00:57]}  Nc5 {[%clk 0:00:12]} 36. Rxc7 {[%clk 0:00:57]}  Nxb3 {[%clk 0:00:12]} 37. Nf5 {[%clk 0:00:53]}  Rxb5 {[%clk 0:00:10]} 38. Nxg7 {[%clk 0:00:54]}  Nd4 {[%clk 0:00:09]} 39. Ne8 {[%clk 0:00:53]}  f5 {[%clk 0:00:08]} 40. Nf6+ {[%clk 0:00:47]}  Kf8 {[%clk 0:00:08]} 41. h4 {[%clk 0:00:44]}  f4 {[%clk 0:00:08]} 42. Nh7+ {[%clk 0:00:40]}  Kg8 {[%clk 0:00:08]} 43. Ng5 {[%clk 0:00:30]}  Nf5 {[%clk 0:00:06]} 44. Rc8+ {[%clk 0:00:24]}  Kg7 {[%clk 0:00:06]} 45. Ne6+ {[%clk 0:00:24]}  Kf6 {[%clk 0:00:05]} 46. Nxf4 {[%clk 0:00:24]}  Nxh4 {[%clk 0:00:05]} 47. g3 {[%clk 0:00:20]}  Nf3+ {[%clk 0:00:05]} 48. Kg2 {[%clk 0:00:20]}  Ne5 {[%clk 0:00:06]} 49. Rf8+ {[%clk 0:00:13]}  Kg7 {[%clk 0:00:05]} 50. Rf5 {[%clk 0:00:13]}  Rc5 {[%clk 0:00:01]} 51. Ne6+ {[%clk 0:00:08]}  Kg6 {[%clk 0:00:01]} 52. Rg5+ {[%clk 0:00:09]}  Kf6 {[%clk 0:00:01]} 53. Nxc5 {[%clk 0:00:09]}  Kxg5 {[%clk 0:00:02]} 54. f4+ {[%clk 0:00:09]}  Kf5 {[%clk 0:00:01]} 55. fxe5 {[%clk 0:00:10]}  Kxe5 {[%clk 0:00:02]} 56. Kf3 {[%clk 0:00:10]}  Kf5 {[%clk 0:00:03]} 57. Ne4 {[%clk 0:00:10]}  Ke6 {[%clk 0:00:03]} 58. g4 {[%clk 0:00:11]}  Kf7 {[%clk 0:00:03]} 59. g5 {[%clk 0:00:11]}  Kg6 {[%clk 0:00:04]} 60. Kg4 {[%clk 0:00:11]}  Kg7 {[%clk 0:00:05]} 61. Kf5 {[%clk 0:00:12]}  Kg8 {[%clk 0:00:06]} 62. g6 {[%clk 0:00:11]}  Kg7 {[%clk 0:00:07]} 63. Ng5 {[%clk 0:00:12]}  Kg8 {[%clk 0:00:07]} 64. Ne6 {[%clk 0:00:12]}  Kh8 {[%clk 0:00:08]} 65. Kf6 {[%clk 0:00:12]}  Kg8 {[%clk 0:00:06]} 66. g7 {[%clk 0:00:11]} 1-0


[Site "https://www.chess.com"]

[Event "Titled Tuesday Blitz August 1 Early 2023"]
[White "Przybylski, Wojciech"]
[Black "Zeman, Matyas"]
[WhiteFideId "1117599"]
[BlackFideId "364398"]
[WhiteElo "2630"]
[BlackElo "2463"]
[Result "1-0"]
[Round "6"]
[TimeControl "180+1"]
[Date "2023.08.01"]
[WhiteClock "0:01:45"]
[BlackClock "0:00:08"]
[Board "91"]

1. d4 {[%clk 0:03:00]}  Nf6 {[%clk 0:02:57]} 2. c4 {[%clk 0:03:00]}  e6 {[%clk 0:02:57]} 3. Nf3 {[%clk 0:03:00]}  d5 {[%clk 0:02:57]} 4. Nc3 {[%clk 0:03:00]}  c5 {[%clk 0:02:57]} 5. cxd5 {[%clk 0:02:59]}  Nxd5 {[%clk 0:02:58]} 6. g3 {[%clk 0:02:57]}  cxd4 {[%clk 0:02:50]} 7. Nxd5 {[%clk 0:02:56]}  Qxd5 {[%clk 0:02:50]} 8. Qxd4 {[%clk 0:02:56]}  Qb5 {[%clk 0:02:49]} 9. Bg2 {[%clk 0:02:49]}  Nc6 {[%clk 0:02:48]} 10. Qe4 {[%clk 0:02:41]}  Qb4+ {[%clk 0:02:20]} 11. Nd2 {[%clk 0:02:38]}  Qxe4 {[%clk 0:02:07]} 12. Bxe4 {[%clk 0:02:38]}  Bd7 {[%clk 0:01:57]} 13. e3 {[%clk 0:02:36]}  Rc8 {[%clk 0:01:46]} 14. a3 {[%clk 0:02:35]}  Be7 {[%clk 0:01:30]} 15. f4 {[%clk 0:02:29]}  O-O {[%clk 0:01:29]} 16. Kf2 {[%clk 0:02:27]}  Rc7 {[%clk 0:01:23]} 17. Rd1 {[%clk 0:02:21]}  b5 {[%clk 0:01:04]} 18. Nb3 {[%clk 0:02:19]}  Rfc8 {[%clk 0:00:32]} 19. Bd2 {[%clk 0:02:18]}  Be8 {[%clk 0:00:33]} 20. Rac1 {[%clk 0:02:13]}  Nb8 {[%clk 0:00:16]} 21. Rxc7 {[%clk 0:02:11]}  Rxc7 {[%clk 0:00:17]} 22. Bc3 {[%clk 0:02:04]}  Nd7 {[%clk 0:00:15]} 23. Ba5 {[%clk 0:01:48]}  Rc4 {[%clk 0:00:13]} 24. Bd3 {[%clk 0:01:47]}  Ra4 {[%clk 0:00:08]} 25. Bxb5 {[%clk 0:01:45]} 1-0


[Site "https://www.chess.com"]

[Event "Titled Tuesday Blitz August 1 Early 2023"]
[White "Ovetchkin, Roman"]
[Black "Manukian, Artak"]
[WhiteFideId "4119991"]
[BlackFideId "13301373"]
[WhiteElo "2621"]
[BlackElo "2447"]
[Result "1-0"]
[Round "6"]
[TimeControl "180+1"]
[Date "2023.08.01"]
[WhiteClock "0:00:17"]
[BlackClock "0:00:24"]
[Board "94"]

1. d4 {[%clk 0:02:56]}  Nf6 {[%clk 0:02:57]} 2. c4 {[%clk 0:02:55]}  g6 {[%clk 0:02:57]} 3. Nc3 {[%clk 0:02:51]}  Bg7 {[%clk 0:02:57]} 4. e4 {[%clk 0:02:51]}  O-O {[%clk 0:02:58]} 5. Be2 {[%clk 0:02:47]}  d6 {[%clk 0:02:58]} 6. Be3 {[%clk 0:02:47]}  e5 {[%clk 0:02:58]} 7. d5 {[%clk 0:02:47]}  c5 {[%clk 0:02:58]} 8. g4 {[%clk 0:02:46]}  Ne8 {[%clk 0:02:56]} 9. h4 {[%clk 0:02:38]}  h6 {[%clk 0:02:54]} 10. h5 {[%clk 0:02:37]}  g5 {[%clk 0:02:52]} 11. a3 {[%clk 0:02:31]}  Nc7 {[%clk 0:02:44]} 12. b4 {[%clk 0:02:29]}  b6 {[%clk 0:02:43]} 13. f3 {[%clk 0:02:28]}  Bf6 {[%clk 0:02:38]} 14. Bd3 {[%clk 0:02:27]}  Bd7 {[%clk 0:02:34]} 15. Nge2 {[%clk 0:02:26]}  a5 {[%clk 0:02:23]} 16. bxc5 {[%clk 0:02:24]}  bxc5 {[%clk 0:02:23]} 17. Rb1 {[%clk 0:02:20]}  Nba6 {[%clk 0:02:18]} 18. Bc2 {[%clk 0:02:19]}  Rb8 {[%clk 0:02:17]} 19. Ba4 {[%clk 0:02:11]}  Rxb1 {[%clk 0:02:10]} 20. Qxb1 {[%clk 0:02:11]}  Qc8 {[%clk 0:01:58]} 21. Kf2 {[%clk 0:01:50]}  Qe8 {[%clk 0:01:56]} 22. Qc2 {[%clk 0:01:46]}  Bxa4 {[%clk 0:01:53]} 23. Qxa4 {[%clk 0:01:45]}  Qxa4 {[%clk 0:01:52]} 24. Nxa4 {[%clk 0:01:45]}  Rb8 {[%clk 0:01:53]} 25. Nec3 {[%clk 0:01:39]}  Bd8 {[%clk 0:01:50]} 26. Rb1 {[%clk 0:01:37]}  Rxb1 {[%clk 0:01:50]} 27. Nxb1 {[%clk 0:01:38]}  Na8 {[%clk 0:01:46]} 28. Nbc3 {[%clk 0:01:31]}  Nb6 {[%clk 0:01:43]} 29. Nb2 {[%clk 0:01:30]}  Nc7 {[%clk 0:01:38]} 30. Ke2 {[%clk 0:01:30]}  Kf8 {[%clk 0:01:37]} 31. Kd3 {[%clk 0:01:29]}  Ke8 {[%clk 0:01:36]} 32. Ne2 {[%clk 0:01:29]}  Be7 {[%clk 0:01:18]} 33. Bd2 {[%clk 0:01:27]}  a4 {[%clk 0:01:15]} 34. Ba5 {[%clk 0:01:26]}  Nca8 {[%clk 0:01:13]} 35. Nc3 {[%clk 0:01:15]}  Bd8 {[%clk 0:01:12]} 36. Bxb6 {[%clk 0:01:09]}  Nxb6 {[%clk 0:01:10]} 37. Ncxa4 {[%clk 0:01:06]}  Nxa4 {[%clk 0:01:07]} 38. Nxa4 {[%clk 0:01:07]}  Kd7 {[%clk 0:01:07]} 39. Nc3 {[%clk 0:01:06]}  Kc8 {[%clk 0:01:03]} 40. Kc2 {[%clk 0:01:03]}  Kb7 {[%clk 0:01:03]} 41. Kb3 {[%clk 0:01:03]}  Ka6 {[%clk 0:01:03]} 42. Nb5 {[%clk 0:00:56]}  Be7 {[%clk 0:01:02]} 43. Ka4 {[%clk 0:00:49]}  Kb6 {[%clk 0:01:01]} 44. Nc3 {[%clk 0:00:47]}  Bf8 {[%clk 0:00:59]} 45. Nd1 {[%clk 0:00:45]}  Ka6 {[%clk 0:00:59]} 46. Ne3 {[%clk 0:00:44]}  Kb6 {[%clk 0:00:59]} 47. Nf5 {[%clk 0:00:27]}  Ka6 {[%clk 0:00:58]} 48. Kb3 {[%clk 0:00:25]}  Ka5 {[%clk 0:00:55]} 49. Ka2 {[%clk 0:00:24]}  Ka4 {[%clk 0:00:53]} 50. Kb2 {[%clk 0:00:24]}  Ka5 {[%clk 0:00:52]} 51. Kb3 {[%clk 0:00:24]}  Kb6 {[%clk 0:00:52]} 52. Kc3 {[%clk 0:00:24]}  Ka5 {[%clk 0:00:51]} 53. Kd3 {[%clk 0:00:20]}  Ka4 {[%clk 0:00:50]} 54. f4 {[%clk 0:00:18]}  exf4 {[%clk 0:00:35]} 55. e5 {[%clk 0:00:18]}  dxe5 {[%clk 0:00:34]} 56. d6 {[%clk 0:00:18]}  Bxd6 {[%clk 0:00:33]} 57. Nxd6 {[%clk 0:00:18]}  Kxa3 {[%clk 0:00:29]} 58. Nxf7 {[%clk 0:00:17]}  f3 {[%clk 0:00:29]} 59. Nxe5 {[%clk 0:00:17]}  f2 {[%clk 0:00:24]} 60. Ke2 {[%clk 0:00:17]} 1-0


[Site "https://www.chess.com"]